bitfinex-derivatives/quotes_BTCF0:USTF0_20250827
["timestamp","ask_amount","ask_price","bid_price","bid_amount"]
[1756293163008,0.80789837,111330.0,111320.0,0.50101]
[1756293163509,1.05789837,111330.0,111320.0,0.38106]
[1756293163704,1.05789837,111330.0,111320.0,0.3608]
[1756293164008,1.87705837,111330.0,111320.0,0.3608]
[1756293164807,1.05789837,111330.0,111320.0,0.3608]
[1756293165007,1.05789837,111330.0,111320.0,0.47184]
[1756293165912,0.7085929,111330.0,111320.0,0.47184]
[1756293166110,1.87705837,111330.0,111320.0,0.47184]
[1756293166907,1.87705837,111330.0,111320.0,0.44201]
[1756293167107,1.87705837,111330.0,111320.0,0.41977]
[1756293168415,1.87705837,111330.0,111320.0,0.39984]
[1756293170116,2.17705837,111330.0,111320.0,0.39984]
[1756293170316,2.17705837,111330.0,111320.0,0.38185]
[1756293170517,2.17705837,111330.0,111320.0,0.34281]
[1756293170718,2.17705837,111330.0,111320.0,0.36307]
[1756293172013,2.17705837,111330.0,111320.0,0.34281]
[1756293172209,1.92605837,111330.0,111310.0,0.3608]
[1756293172417,0.44982547,111320.0,111310.0,0.3608]
[1756293172719,0.81966547,111320.0,111310.0,0.3608]
[1756293173212,0.81966547,111320.0,111310.0,0.38106]
[1756293173821,0.82966547,111320.0,111310.0,0.38106]
[1756293174309,0.82966547,111320.0,111310.0,0.3608]
[1756293174821,1.13096547,111320.0,111310.0,0.38106]
[1756293175719,1.13196547,111320.0,111310.0,0.40099]
[1756293176416,1.95108547,111320.0,111310.0,0.47184]
[1756293176617,1.95108547,111320.0,111310.0,0.50101]
[1756293177521,1.95108547,111320.0,111310.0,0.47184]
[1756293178212,1.95108547,111320.0,111310.0,0.42208]
[1756293178416,1.95108547,111320.0,111310.0,0.39984]
[1756293178720,1.27178,111320.0,111310.0,0.39984]
[1756293178922,1.93108547,111320.0,111310.0,0.39984]
[1756293179310,1.93108547,111320.0,111310.0,0.47009]
[1756293180320,1.93108547,111320.0,111310.0,0.42242]
[1756293180622,1.93108547,111320.0,111310.0,0.39984]
[1756293182223,0.80196547,111320.0,111310.0,0.39984]
[1756293182424,1.97104547,111320.0,111310.0,0.42758]
[1756293182824,1.97104547,111320.0,111310.0,0.44751]
[1756293183324,1.27174,111320.0,111310.0,0.49797]
[1756293183524,1.62104547,111320.0,111310.0,0.49797]
[1756293184321,0.80196547,111320.0,111310.0,0.49797]
[1756293184624,1.62104547,111320.0,111310.0,0.49797]
[1756293184817,0.80196547,111320.0,111310.0,0.49797]
[1756293185013,1.62100547,111320.0,111310.0,0.49797]
[1756293187624,1.62100547,111320.0,111310.0,0.47009]
[1756293188023,1.62100547,111320.0,111310.0,0.58292945]
[1756293189323,1.53333525,111320.0,111310.0,0.8445647]
[1756293189825,1.53333525,111320.0,111310.0,0.7968947]
[1756293190326,1.7949705,111320.0,111310.0,0.7968947]
[1756293190528,1.7949705,111320.0,111310.0,0.64269525]
[1756293190832,1.7949705,111320.0,111310.0,0.62243525]
[1756293191334,2.1749705,111320.0,111310.0,0.62243525]
[1756293191534,2.1749705,111320.0,111310.0,0.64242525]
[1756293192032,2.1749705,111320.0,111310.0,0.38079]
[1756293192234,2.1349705,111320.0,111310.0,0.38079]
[1756293192436,2.1749705,111320.0,111310.0,0.38079]
[1756293192935,1.7949705,111320.0,111310.0,0.38079]
[1756293193236,2.1149705,111320.0,111310.0,0.38079]
[1756293195334,0.1536,111310.0,111300.0,0.47363945]
[1756293195530,0.78523525,111310.0,111300.0,0.47363945]
[1756293195834,0.78523525,111310.0,111300.0,0.3608]
[1756293196537,1.58423525,111310.0,111300.0,0.44152]
[1756293196737,1.58423525,111310.0,111300.0,0.3608]
[1756293197035,1.61423525,111310.0,111300.0,0.38079]
[1756293197425,1.70154114,111310.0,111300.0,0.38079]
[1756293197627,1.70154114,111310.0,111300.0,0.3608]
[1756293197826,2.20144114,111310.0,111300.0,0.3608]
[1756293198530,2.20244114,111310.0,111300.0,0.3608]
[1756293199641,2.02907236,111310.0,111300.0,0.3608]
[1756293199941,2.09128236,111310.0,111300.0,0.38868]
[1756293200140,2.09128236,111310.0,111290.0,0.52175977]
[1756293200340,0.40915114,111300.0,111290.0,0.56432977]
[1756293200534,0.78915114,111300.0,111290.0,0.64366977]
[1756293200940,0.78915114,111300.0,111290.0,0.53083032]
[1756293201441,0.78915114,111300.0,111290.0,0.64366977]
[1756293201635,0.79015114,111300.0,111290.0,0.53083032]
[1756293201836,0.88354114,111300.0,111290.0,0.53083032]
[1756293202242,0.88454114,111300.0,111290.0,0.53083032]
[1756293202442,1.32354114,111300.0,111290.0,0.53083032]
[1756293212444,1.32354114,111300.0,111290.0,0.42891032]
[1756293212646,1.32354114,111300.0,111290.0,0.53318032]
[1756293216347,0.9746,111300.0,111290.0,0.53318032]
[1756293216740,1.32354114,111300.0,111290.0,0.53318032]
[1756293217347,1.23633029,111300.0,111290.0,0.79491061]
[1756293218349,1.49806058,111300.0,111290.0,0.79491061]
[1756293218849,0.9746,111300.0,111290.0,0.79491061]
[1756293219053,1.49806058,111300.0,111290.0,0.79491061]
[1756293221755,1.49806058,111300.0,111290.0,0.53318032]
[1756293221950,0.67906058,111300.0,111290.0,0.79491061]
[1756293222150,1.49798058,111300.0,111290.0,0.79491061]
[1756293222350,0.97452,111300.0,111290.0,0.90775006]
[1756293222653,0.94529,111300.0,111290.0,0.90775006]
[1756293222854,1.20702029,111300.0,111290.0,0.90775006]
[1756293223056,1.23405029,111300.0,111290.0,0.90775006]
[1756293227754,0.97232,111300.0,111290.0,0.79491061]
[1756293227946,1.23405029,111300.0,111290.0,0.79491061]
[1756293232760,1.23405029,111300.0,111290.0,0.90781451]
[1756293233059,1.09034481,111300.0,111290.0,0.90781451]
[1756293234355,1.09034481,111300.0,111290.0,0.54701451]
[1756293234561,1.09034481,111300.0,111290.0,0.90781451]
[1756293234961,1.09787481,111300.0,111290.0,0.90781451]
[1756293241168,1.09787481,111300.0,111290.0,0.64608422]
[1756293241564,1.3596051,111300.0,111290.0,0.90781451]
[1756293242865,1.8595051,111300.0,111290.0,0.90781451]
[1756293249372,1.33604452,111300.0,111290.0,0.90781451]
[1756293249569,1.8595051,111300.0,111290.0,0.90781451]
[1756293249770,1.59777481,111300.0,111290.0,0.90781451]
[1756293250072,0.82680029,111300.0,111290.0,0.90781451]
[1756293250273,0.79977029,111300.0,111290.0,0.90781451]
[1756293250468,1.61841029,111300.0,111290.0,0.64608422]
[1756293250772,1.61841029,111300.0,111290.0,0.90781451]
[1756293251276,1.63642029,111300.0,111290.0,0.90781451]
[1756293254876,0.79977029,111300.0,111290.0,0.90781451]
[1756293255178,1.43784945,111300.0,111290.0,0.90781451]
[1756293255374,1.17611916,111300.0,111290.0,0.90781451]
[1756293255575,0.35747916,111300.0,111290.0,1.30781451]
[1756293255774,0.35747916,111300.0,111290.0,1.4566409]
[1756293256370,0.35747916,111300.0,111290.0,1.19491061]
[1756293256773,0.35747916,111300.0,111290.0,0.93318032]
[1756293256969,0.35747916,111300.0,111290.0,1.19491061]
[1756293258179,0.35747916,111300.0,111290.0,1.30781451]
[1756293259776,0.35747916,111300.0,111290.0,1.19491061]
[1756293260680,0.35747916,111300.0,111290.0,1.30771528]
[1756293261081,0.35747916,111300.0,111290.0,1.19491061]
[1756293262880,0.35747916,111300.0,111290.0,1.30770821]
[1756293265688,0.35747916,111300.0,111290.0,1.5694385]
[1756293266088,0.19469916,111300.0,111290.0,1.5694385]
[1756293266991,0.19469916,111300.0,111290.0,2.3879185]
[1756293267988,0.19469916,111300.0,111290.0,2.2751209]
[1756293269085,0.19469916,111300.0,111290.0,2.3879185]
[1756293271388,0.19469916,111300.0,111290.0,2.2751209]
[1756293271789,0.19469916,111300.0,111290.0,2.2761209]
[1756293272489,0.19569916,111300.0,111290.0,2.2761209]
[1756293273186,0.19569916,111300.0,111290.0,2.2751209]
[1756293273486,0.19569916,111300.0,111290.0,2.38776926]
[1756293273891,0.19569916,111300.0,111290.0,2.2751209]
[1756293274890,0.19569916,111300.0,111290.0,2.2761209]
[1756293275190,0.19469916,111300.0,111290.0,2.2761209]
[1756293276187,0.19469916,111300.0,111290.0,2.38871353]
[1756293276789,0.06726916,111300.0,111290.0,2.38871353]
[1756293277093,0.15347,111320.0,111310.0,0.10147]
[1756293277295,0.15347,111320.0,111310.0,1.92318798]
[1756293277994,0.11924,111320.0,111310.0,2.33491827]
[1756293278194,0.07028,111320.0,111310.0,2.33491827]
[1756293278390,0.05022,111320.0,111310.0,2.33491827]
[1756293279089,0.003,111320.0,111310.0,2.33491827]
[1756293279491,0.003,111320.0,111310.0,2.4475109]
[1756293281895,0.02498907,111330.0,111310.0,2.3977309]
[1756293282201,0.15775113,111330.0,111320.0,1.02465058]
[1756293282405,0.19459455,111330.0,111320.0,1.17465058]
[1756293283503,0.15775113,111330.0,111320.0,1.17465058]
[1756293283905,0.21646113,111330.0,111320.0,1.17465058]
[1756293284913,0.19147206,111330.0,111320.0,1.17465058]
[1756293285208,0.16411206,111330.0,111320.0,1.17465058]
[1756293285411,0.13276206,111330.0,111320.0,1.17465058]
[1756293286301,0.07223206,111330.0,111320.0,1.17465058]
[1756293286499,0.05322661,111340.0,111330.0,0.14039]
[1756293286711,0.05322661,111340.0,111330.0,0.91292029]
[1756293286910,0.20669661,111340.0,111330.0,1.60146507]
[1756293288004,0.27739906,111340.0,111330.0,1.60146507]
[1756293289215,0.27739906,111340.0,111330.0,1.33973478]
[1756293289409,0.27739906,111340.0,111330.0,1.60146507]
[1756293291115,0.12392906,111340.0,111330.0,1.86311536]
[1756293291616,0.12392906,111340.0,111330.0,1.60138507]
[1756293291816,0.15815906,111340.0,111330.0,1.75138507]
[1756293292513,0.18551906,111340.0,111330.0,1.75138507]
[1756293292812,0.08570245,111340.0,111330.0,2.01311536]
[1756293293401,0.08570245,111340.0,111330.0,1.75138507]
[1756293293810,0.12411389,111340.0,111330.0,1.75138507]
[1756293294509,0.12411389,111340.0,111330.0,2.01311536]
[1756293294713,0.12411389,111340.0,111330.0,2.01307536]
[1756293295810,0.15834389,111340.0,111330.0,2.01307536]
[1756293296315,0.12411389,111340.0,111330.0,2.01307536]
[1756293297021,0.18411389,111340.0,111330.0,1.33961478]
[1756293297316,0.18411389,111340.0,111330.0,1.86307536]
[1756293298218,0.21834389,111340.0,111330.0,1.04503536]
[1756293298417,0.33758389,111340.0,111330.0,1.60130507]
[1756293300118,0.33758389,111340.0,111330.0,0.78330507]
[1756293300316,0.33758389,111340.0,111330.0,1.60130507]
[1756293300715,1.43104447,111340.0,111330.0,0.41988478]
[1756293300917,1.43104447,111340.0,111330.0,0.38118478]
[1756293301719,1.43104447,111340.0,111330.0,0.40343478]
[1756293302113,1.93094447,111340.0,111330.0,0.38118478]
[1756293302615,1.40748389,111340.0,111330.0,0.38118478]
[1756293302824,1.40748389,111340.0,111330.0,0.45168478]
[1756293303118,1.93094447,111340.0,111330.0,0.42206478]
[1756293303320,1.93094447,111340.0,111330.0,0.38118478]
[1756293305818,1.68094447,111340.0,111330.0,0.38118478]
[1756293306115,1.68094447,111340.0,111330.0,0.02038478]
[1756293306318,1.68094447,111340.0,111330.0,0.38118478]
[1756293307315,1.68094447,111340.0,111330.0,0.40343478]
[1756293307515,1.68094447,111340.0,111330.0,0.04263478]
[1756293307716,1.68094447,111340.0,111330.0,0.40343478]
[1756293307916,1.68094447,111340.0,111330.0,0.38118478]
[1756293308317,1.68094447,111340.0,111330.0,0.02038478]
[1756293308520,1.68094447,111340.0,111330.0,0.38118478]
[1756293309219,2.19267476,111340.0,111320.0,0.3608]
[1756293309420,1.49601058,111330.0,111320.0,0.3608]
[1756293309620,1.59464029,111330.0,111320.0,0.3608]
[1756293309820,1.59464029,111330.0,111320.0,0.38305]
[1756293310222,1.59464029,111330.0,111320.0,0.3608]
[1756293310824,2.09454029,111330.0,111320.0,0.3618]
[1756293311124,2.09454029,111330.0,111320.0,0.3628]
[1756293311327,1.75454029,111330.0,111320.0,0.38505]
[1756293311524,2.04454029,111330.0,111320.0,0.38505]
[1756293311926,2.04454029,111330.0,111320.0,0.3628]
[1756293312625,2.30627058,111330.0,111320.0,0.3628]
[1756293313023,2.55627058,111330.0,111320.0,0.3628]
[1756293313328,2.55627058,111330.0,111320.0,0.002]
[1756293313528,2.55595058,111330.0,111320.0,0.002]
[1756293313921,1.73699058,111330.0,111320.0,0.002]
[1756293314224,2.55595058,111330.0,111320.0,0.002]
[1756293316124,2.38483964,111330.0,111320.0,0.002]
[1756293316525,2.23279029,111330.0,111320.0,0.002]
[1756293318131,2.29422029,111330.0,111320.0,0.002]
[1756293320529,2.03249,111330.0,111320.0,0.002]
[1756293320826,2.29422029,111330.0,111320.0,0.002]
[1756293323636,2.29422029,111330.0,111320.0,0.3628]
[1756293325141,2.29422029,111330.0,111320.0,0.002]
[1756293325737,2.55595058,111330.0,111320.0,0.002]
[1756293325941,2.55595058,111330.0,111320.0,0.3628]
[1756293327338,2.55595058,111330.0,111310.0,0.3608]
[1756293327534,0.67709058,111320.0,111310.0,0.3608]
[1756293327843,1.01709058,111320.0,111310.0,0.3608]
[1756293328034,1.01709058,111320.0,111310.0,0.39042]
[1756293328234,1.83529058,111320.0,111310.0,0.39042]
[1756293328437,1.01709058,111320.0,111310.0,0.02962]
[1756293328638,1.02183,111320.0,111310.0,0.78107029]
[1756293328838,0.96526029,111320.0,111310.0,1.03107029]
[1756293329144,0.6431,111320.0,111310.0,1.03107029]
[1756293329436,1.49332,111320.0,111310.0,0.76934]
[1756293329641,0.96373029,111320.0,111310.0,1.03107029]
[1756293330541,0.96473029,111320.0,111310.0,1.03107029]
[1756293332038,0.96473029,111320.0,111310.0,0.99695029]
[1756293332240,1.53646058,111320.0,111310.0,0.39042]
[1756293332949,1.52646058,111320.0,111310.0,0.39042]
[1756293333141,1.24646058,111320.0,111310.0,0.4122]
[1756293333444,1.51646058,111320.0,111310.0,0.4122]
[1756293334241,1.51646058,111320.0,111310.0,0.43392]
[1756293334944,1.25646058,111320.0,111310.0,0.45289]
[1756293335142,1.52646058,111320.0,111310.0,0.51934]
[1756293335448,1.35189958,111320.0,111310.0,0.48789]
[1756293335739,1.35189958,111320.0,111310.0,0.45289]
[1756293335944,1.35189958,111320.0,111310.0,0.43117]
[1756293336445,0.723,111320.0,111310.0,0.4122]
[1756293336640,1.31189958,111320.0,111310.0,0.4122]
[1756293337345,1.31189958,111320.0,111310.0,0.39042]
[1756293337943,1.31189958,111320.0,111310.0,0.3608]
[1756293339344,1.34189958,111320.0,111310.0,0.38869]
[1756293341843,1.34189958,111320.0,111310.0,0.3608]
[1756293342149,0.15333,111310.0,111300.0,0.51761]
[1756293342342,1.66046958,111310.0,111300.0,0.63020263]
[1756293342545,1.66046958,111310.0,111300.0,0.11259263]
[1756293344348,1.66046958,111310.0,111290.0,0.56773263]
[1756293344653,0.50222958,111300.0,111290.0,0.63020263]
[1756293344849,0.88222958,111300.0,111290.0,0.63020263]
[1756293345148,0.87222958,111300.0,111290.0,0.51761]
[1756293345850,0.87222958,111300.0,111290.0,0.51861]
[1756293346045,0.87222958,111300.0,111290.0,0.51961]
[1756293346249,0.87222958,111300.0,111290.0,0.51861]
[1756293346545,0.87222958,111300.0,111290.0,0.51961]
[1756293346851,0.87222958,111300.0,111290.0,0.51861]
[1756293347045,0.87222958,111300.0,111290.0,0.51961]
[1756293348552,1.69054958,111300.0,111290.0,0.51961]
[1756293351454,1.69054958,111300.0,111290.0,0.02989]
[1756293351948,1.69054958,111300.0,111290.0,0.10839]
[1756293352350,1.69054958,111300.0,111290.0,0.05167]
[1756293352541,1.69054958,111300.0,111290.0,0.02989]
[1756293353043,2.19044958,111300.0,111290.0,0.02989]
[1756293353753,2.19044958,111300.0,111290.0,0.002]
[1756293355043,2.55124958,111300.0,111290.0,0.002]
[1756293359751,2.05134958,111300.0,111290.0,0.002]
[1756293360157,2.55124958,111300.0,111290.0,0.002]
[1756293361558,1.38403,111300.0,111290.0,0.002]
[1756293361755,2.20251,111300.0,111290.0,0.15859]
[1756293361955,2.55140958,111300.0,111290.0,0.15859]
[1756293366162,2.20251,111300.0,111290.0,0.15859]
[1756293366361,2.55140958,111300.0,111290.0,0.15859]
[1756293366762,2.20251,111300.0,111290.0,0.15859]
[1756293366964,2.55140958,111300.0,111290.0,0.1266]
[1756293367163,2.55140958,111300.0,111290.0,0.0711]
[1756293367362,2.55192958,111300.0,111290.0,0.0711]
[1756293367565,2.55192958,111300.0,111290.0,0.1266]
[1756293368064,2.55192958,111300.0,111290.0,0.0711]
[1756293368668,2.55192958,111300.0,111290.0,0.05238]
[1756293371371,2.55172958,111300.0,111290.0,0.05138]
[1756293371669,2.55172958,111300.0,111290.0,0.1246]
[1756293372068,2.55172958,111300.0,111290.0,0.09086]
[1756293372368,2.55172958,111300.0,111290.0,0.02798]
[1756293372569,2.55172958,111300.0,111280.0,0.42653]
[1756293372774,0.50695958,111290.0,111280.0,0.51739]
[1756293372965,0.83695958,111290.0,111280.0,0.4854]
[1756293373771,0.83695958,111290.0,111280.0,0.51739]
[1756293374071,1.34662,111290.0,111280.0,0.51739]
[1756293374367,0.99678,111290.0,111280.0,0.51939]
[1756293374875,1.34678,111290.0,111280.0,0.51939]
[1756293375073,1.69567958,111290.0,111280.0,0.4874]
[1756293375367,1.60857504,111290.0,111280.0,0.4874]
[1756293375569,1.60857504,111290.0,111280.0,0.39078]
[1756293375764,1.60857504,111290.0,111280.0,0.3618]
[1756293375963,1.60857504,111290.0,111280.0,0.3628]
[1756293376365,1.60857504,111290.0,111280.0,0.39078]
[1756293376562,2.23117008,111290.0,111280.0,0.002]
[1756293376776,1.87037008,111290.0,111280.0,0.002]
[1756293377468,1.69593695,111290.0,111280.0,0.002]
[1756293377669,2.55663695,111290.0,111280.0,0.002]
[1756293380472,2.55663695,111290.0,111270.0,0.3608]
[1756293380681,0.50721695,111280.0,111270.0,0.3608]
[1756293380869,0.82721695,111280.0,111270.0,0.41118]
[1756293381169,0.948,111280.0,111270.0,0.51739]
[1756293381365,0.12844,111280.0,111270.0,1.11654695]
[1756293381569,0.86333,111280.0,111270.0,1.11654695]
[1756293381771,0.86333,111280.0,111270.0,1.11954695]
[1756293382163,0.9482,111280.0,111270.0,0.77039]
[1756293382366,0.97782,111280.0,111270.0,0.77039]
[1756293382574,0.9482,111280.0,111270.0,0.77039]
[1756293382775,0.97782,111280.0,111270.0,0.77039]
[1756293382965,1.04864694,111280.0,111270.0,0.77039]
[1756293383169,1.01902694,111280.0,111270.0,0.88298263]
[1756293383567,1.01902694,111280.0,111270.0,0.88198263]
[1756293383782,1.01902694,111280.0,111270.0,0.88298263]
[1756293384675,1.51892694,111280.0,111270.0,0.88298263]
[1756293384989,1.53892694,111280.0,111270.0,0.88298263]
[1756293385274,1.53892694,111280.0,111270.0,0.77039]
[1756293385474,1.56854694,111280.0,111270.0,0.77039]
[1756293385781,2.27770389,111280.0,111270.0,0.52039]
[1756293385973,2.27770389,111280.0,111270.0,0.45466]
[1756293386175,2.27770389,111280.0,111270.0,0.52039]
[1756293386377,1.54892694,111280.0,111270.0,0.63298263]
[1756293386776,1.57854694,111280.0,111270.0,0.52039]
[1756293387076,1.92770389,111280.0,111270.0,0.52039]
[1756293387278,1.92770389,111280.0,111270.0,0.63298263]
[1756293389683,2.25770389,111280.0,111270.0,0.63298263]
[1756293389879,2.24770389,111280.0,111270.0,0.47639263]
[1756293390376,2.60850389,111280.0,111270.0,0.11559263]
[1756293390682,2.60850389,111280.0,111270.0,0.003]
[1756293392683,2.24770389,111280.0,111270.0,0.003]
[1756293393181,2.60850389,111280.0,111270.0,0.003]
[1756293393388,3.20766084,111280.0,111270.0,0.003]
[1756293407486,3.03287767,111280.0,111270.0,0.003]
[1756293407691,3.07685767,111280.0,111270.0,0.003]
[1756293414291,2.38831084,111280.0,111270.0,0.003]
[1756293414492,3.20879084,111280.0,111270.0,0.003]
[1756293415290,3.29622824,111280.0,111270.0,0.003]
[1756293415793,1.68999694,111280.0,111270.0,0.003]
[1756293415993,3.29602824,111280.0,111270.0,0.003]
[1756293416389,3.03411114,111280.0,111270.0,0.003]
[1756293416590,3.03411114,111280.0,111270.0,0.002]
[1756293417590,2.93930114,111280.0,111260.0,0.09476]
[1756293417795,0.4183071,111270.0,111260.0,0.15547]
[1756293418089,0.7883071,111270.0,111260.0,0.15547]
[1756293418491,1.6088271,111270.0,111260.0,0.15547]
[1756293418798,1.6087871,111270.0,111260.0,0.15547]
[1756293419797,0.7883071,111270.0,111260.0,0.15547]
[1756293419995,1.6086671,111270.0,111260.0,0.15547]
[1756293420697,1.63667351,111270.0,111260.0,0.15547]
[1756293422492,0.81631351,111270.0,111260.0,0.15547]
[1756293422691,1.89855061,111270.0,111260.0,0.12304]
[1756293422890,1.89855061,111270.0,111260.0,0.08928]
[1756293423293,1.63663351,111270.0,111260.0,0.08928]
[1756293423491,1.89855061,111270.0,111260.0,0.08928]
[1756293424698,1.07823061,111270.0,111260.0,0.08928]
[1756293424900,1.89843061,111270.0,111260.0,0.12197]
[1756293428504,1.90043061,111270.0,111260.0,0.08928]
[1756293429703,1.90243061,111270.0,111260.0,0.08928]
[1756293430404,3.40243061,111270.0,111260.0,0.08928]
[1756293431199,3.40243061,111270.0,111260.0,0.07003]
[1756293432707,0.15571,111260.0,111250.0,0.59540263]
[1756293433004,1.0195442,111260.0,111250.0,0.62809263]
[1756293433905,1.0195442,111260.0,111250.0,0.59540263]
[1756293434205,1.0205442,111260.0,111250.0,0.50100263]
[1756293436109,1.0215442,111260.0,111250.0,0.52241263]
[1756293437507,1.5214442,111260.0,111250.0,0.52241263]
[1756293437913,1.5214442,111260.0,111250.0,0.54491263]
[1756293438114,2.3406442,111260.0,111250.0,0.62809263]
[1756293440604,2.3406442,111260.0,111250.0,0.59614263]
[1756293440801,0.99761,111260.0,111250.0,0.89000973]
[1756293441002,2.0789671,111260.0,111250.0,0.89000973]
[1756293442617,1.2595271,111260.0,111250.0,0.89000973]
[1756293442806,2.0788871,111260.0,111250.0,0.89000973]
[1756293444218,1.2595271,111260.0,111250.0,0.89000973]
[1756293444717,2.0786871,111260.0,111250.0,0.89000973]
[1756293446516,1.2595271,111260.0,111250.0,0.89000973]
[1756293446821,2.0786871,111260.0,111250.0,0.89000973]
[1756293449727,1.89937357,111260.0,111250.0,0.89000973]
[1756293449924,1.91878357,111260.0,111250.0,0.89000973]
[1756293450125,1.65686647,111260.0,111250.0,0.89000973]
[1756293450309,1.91878357,111260.0,111250.0,0.89000973]
[1756293450921,1.09962357,111260.0,111250.0,0.89000973]
[1756293451123,1.91874357,111260.0,111250.0,0.89000973]
[1756293451615,2.18066067,111260.0,111250.0,0.59614263]
[1756293451817,2.19411067,111260.0,111250.0,0.50100263]
[1756293452921,2.19411067,111260.0,111250.0,0.38841]
[1756293453521,2.19411067,111260.0,111250.0,0.40868]
[1756293454120,2.19411067,111260.0,111250.0,0.52127263]
[1756293454722,2.19411067,111260.0,111250.0,0.54318263]
[1756293455022,2.19411067,111260.0,111250.0,0.62533263]
[1756293459837,2.19411067,111260.0,111250.0,0.26453263]
[1756293461333,2.19411067,111260.0,111250.0,0.14020263]
[1756293461735,2.19411067,111260.0,111250.0,0.16047263]
[1756293462128,2.19411067,111260.0,111250.0,0.04788]
[1756293463424,2.19411067,111260.0,111250.0,0.02761]
[1756293468636,2.34331067,111260.0,111250.0,0.02761]
[1756293470537,2.70411067,111260.0,111250.0,0.02761]
[1756293476752,2.34331067,111260.0,111250.0,0.02761]
[1756293476952,2.70411067,111260.0,111250.0,0.02761]
[1756293480857,2.70403067,111260.0,111250.0,0.02761]
[1756293483859,2.70403067,111260.0,111250.0,0.07131]
[1756293483860,1.88499067,111260.0,111250.0,0.07131]
[1756293484059,1.00035647,111260.0,111250.0,0.15611]
[1756293484250,1.81935647,111260.0,111250.0,0.15611]
[1756293484455,2.34319067,111260.0,111250.0,0.15611]
[1756293484648,2.34319067,111260.0,111250.0,0.12564]
[1756293485657,2.34319067,111260.0,111250.0,0.15611]
[1756293486556,2.34319067,111260.0,111250.0,0.09116]
[1756293486956,2.34319067,111260.0,111250.0,0.12564]
[1756293488860,2.34319067,111260.0,111250.0,0.15611]
[1756293489656,2.34319067,111260.0,111250.0,0.12564]
[1756293489960,2.34319067,111260.0,111250.0,0.07131]
[1756293490661,2.34319067,111260.0,111250.0,0.12564]
[1756293490861,2.34319067,111260.0,111250.0,0.09116]
[1756293495065,2.34319067,111260.0,111250.0,0.12564]
[1756293495968,1.81935647,111260.0,111250.0,0.12564]
[1756293496167,2.34319067,111260.0,111250.0,0.15611]
[1756293496570,2.19399067,111260.0,111250.0,0.12564]
[1756293497067,2.19399067,111260.0,111250.0,0.09116]
[1756293497972,2.19399067,111260.0,111250.0,0.12564]
[1756293501272,2.19399067,111260.0,111250.0,0.15611]
[1756293501476,2.19399067,111260.0,111250.0,0.62950263]
[1756293502272,2.19399067,111260.0,111250.0,0.26870263]
[1756293503172,2.19399067,111260.0,111250.0,0.09116]
[1756293503372,2.19399067,111260.0,111250.0,0.45196]
[1756293505271,2.19399067,111260.0,111250.0,0.09116]
[1756293505775,2.19399067,111260.0,111250.0,0.45196]
[1756293506373,2.19399067,111260.0,111250.0,0.09116]
[1756293506576,2.34319067,111260.0,111250.0,0.12564]
[1756293506775,2.34319067,111260.0,111250.0,0.48644]
[1756293507279,2.34319067,111260.0,111250.0,0.12564]
[1756293508673,2.34319067,111260.0,111250.0,0.48644]
[1756293509377,2.34319067,111260.0,111250.0,0.12564]
[1756293509579,2.34319067,111260.0,111250.0,0.48644]
[1756293509880,2.34319067,111260.0,111250.0,0.15587]
[1756293510079,2.34319067,111260.0,111250.0,0.51667]
[1756293510678,2.34319067,111260.0,111250.0,0.48644]
[1756293511780,2.34319067,111260.0,111250.0,0.51667]
[1756293513981,2.34319067,111260.0,111250.0,0.48644]
[1756293514978,2.59165777,111260.0,111240.0,0.38885]
[1756293515179,0.5568142,111250.0,111240.0,0.02805]
[1756293515381,0.8868142,111250.0,111240.0,0.02805]
[1756293517185,1.3867142,111250.0,111240.0,0.02805]
[1756293517988,1.3907142,111250.0,111240.0,0.02805]
[1756293519489,0.01276,111240.0,111230.0,0.02805]
[1756293519691,1.7158542,111240.0,111230.0,0.02805]
[1756293520793,1.7178542,111240.0,111230.0,0.02805]
[1756293520990,1.7198542,111240.0,111230.0,0.02805]
[1756293526197,2.3425713,111240.0,111230.0,0.02805]
[1756293526498,2.3425713,111240.0,111220.0,0.42376]
[1756293526499,0.18218,111230.0,111220.0,0.38885]
[1756293526692,1.0160142,111230.0,111220.0,0.38885]
[1756293527494,1.0160142,111230.0,111220.0,0.40894]
[1756293527798,1.0170142,111230.0,111220.0,0.40894]
[1756293528096,1.0190142,111230.0,111220.0,0.40894]
[1756293528595,1.0190142,111230.0,111220.0,0.04814]
[1756293528796,1.0190142,111230.0,111220.0,0.103]
[1756293529494,1.0190142,111230.0,111220.0,0.07027]
[1756293530297,1.0190142,111230.0,111220.0,0.02805]
[1756293530699,1.5189142,111230.0,111220.0,0.02805]
[1756293531292,1.5189142,111230.0,111220.0,0.04814]
[1756293531493,1.5189142,111230.0,111220.0,0.07027]
[1756293532898,1.5189142,111230.0,111220.0,0.04814]
[1756293533097,2.3380342,111230.0,111220.0,0.04814]
[1756293535806,1.5189142,111230.0,111220.0,0.04814]
[1756293535995,2.3380342,111230.0,111220.0,0.07027]
[1756293539102,2.3380342,111230.0,111220.0,0.02805]
[1756293540303,2.3380742,111230.0,111220.0,0.10057]
[1756293544307,2.3380742,111230.0,111220.0,0.15108]
[1756293544502,0.84588,111230.0,111220.0,0.7737971]
[1756293544700,1.5839371,111230.0,111220.0,0.7737971]
[1756293545003,1.32202,111230.0,111220.0,1.4557142]
[1756293545203,1.69202,111230.0,111220.0,1.4557142]
[1756293545503,1.69202,111230.0,111220.0,1.0237971]
[1756293545808,1.69202,111230.0,111220.0,0.7737971]
[1756293546109,1.71039,111230.0,111220.0,0.7737971]
[1756293546302,1.9723071,111230.0,111220.0,0.7737971]
[1756293547306,1.9837871,111230.0,111220.0,0.7737971]
[1756293548605,0.8729,111230.0,111220.0,0.79369369]
[1756293548798,1.35202,111230.0,111220.0,1.47561079]
[1756293549005,1.64202,111230.0,111220.0,1.47561079]
[1756293549200,1.64202,111230.0,111220.0,1.58820342]
[1756293549503,0.5329,111230.0,111220.0,1.58820342]
[1756293551308,0.5319,111230.0,111220.0,1.58820342]
[1756293552108,0.5319,111230.0,111220.0,1.22740342]
[1756293552305,0.5319,111230.0,111220.0,1.94900342]
[1756293553111,0.5319,111230.0,111220.0,1.83641079]
[1756293554607,0.5319,111230.0,111220.0,2.65549079]
[1756293555614,0.5319,111230.0,111220.0,1.83641079]
[1756293556413,0.5319,111230.0,111220.0,1.94900342]
[1756293560328,0.4669,111230.0,111220.0,1.83641079]
[1756293562830,0.4369,111230.0,111220.0,1.83641079]
[1756293563319,0.4369,111230.0,111220.0,1.94900342]
[1756293568335,0.4369,111230.0,111220.0,1.83641079]